bitfinex-derivatives/quotes_SOLF0:USTF0_20250905
["timestamp","ask_amount","ask_price","bid_price","bid_amount"]
[1757033232348,7.41,201.96,201.89,8.13]
[1757033232555,9.56830219,202.0,201.91,8.13]
[1757033235048,2.15830219,201.97,201.91,8.13]
[1757033239752,0.03520787,201.96,201.91,8.13]
[1757033239952,0.03520787,201.96,201.86,7.94]
[1757033240154,0.03520787,201.96,201.88,7.94]
[1757033240354,0.03520787,201.96,201.89,3.87077596]
[1757033240553,0.03520787,201.96,201.9,3.87077596]
[1757033240755,0.03520787,201.96,201.92,7.94]
[1757033241152,0.03520787,201.96,201.88,2.15830219]
[1757033241356,0.03520787,201.96,201.89,3.87099164]
[1757033241548,0.03520787,201.96,201.91,7.94]
[1757033241748,0.03520787,201.96,201.92,3.87099164]
[1757033241958,0.03520787,201.96,201.88,2.15830219]
[1757033241959,0.03520787,201.96,201.89,7.94]
[1757033242154,0.03520787,201.96,201.91,7.94]
[1757033242354,0.03520787,201.96,201.92,3.87099364]
[1757033242556,0.03520787,201.96,201.89,7.94]
[1757033242757,0.03520787,201.96,201.91,7.94]
[1757033242955,0.03520787,201.96,201.93,7.94]
[1757033243154,0.03520787,201.96,201.89,7.94]
[1757033243356,0.03520787,201.96,201.91,7.94]
[1757033243556,0.03520787,201.96,201.93,7.94]
[1757033243856,0.03520787,201.96,201.89,7.94]
[1757033244056,0.03520787,201.96,201.91,7.94]
[1757033244257,0.03520787,201.96,201.92,3.87226993]
[1757033244453,0.03520787,201.96,201.94,7.94]
[1757033244655,0.03520787,201.96,201.89,7.94]
[1757033244854,0.03520787,201.96,201.91,7.94]
[1757033245055,0.03520787,201.96,201.92,3.8730558]
[1757033245250,0.03520787,201.96,201.93,3.8730558]
[1757033245458,0.03520787,201.96,201.89,7.94]
[1757033245658,0.03520787,201.96,201.91,7.94]
[1757033245858,0.03520787,201.96,201.93,7.94]
[1757033247054,0.03520787,201.96,201.9,7.94]
[1757033247259,0.03520787,201.96,201.91,3.87349626]
[1757033247455,0.03520787,201.96,201.92,11.81349626]
[1757033247655,0.03520787,201.96,201.94,7.94]
[1757033247858,0.03520787,201.96,201.89,7.94]
[1757033248054,0.03520787,201.96,201.91,7.94]
[1757033248255,0.03520787,201.96,201.93,7.94]
[1757033248461,0.03520787,201.96,201.89,7.94]
[1757033248762,0.03520787,201.96,201.91,7.94]
[1757033248958,0.03520787,201.96,201.93,7.94]
[1757033249161,0.03520787,201.96,201.89,7.94]
[1757033249459,4.49110787,201.96,201.91,9.32128757]
[1757033249659,4.49110787,201.96,201.93,7.94]
[1757033249955,4.49110787,201.96,201.9,1.38128757]
[1757033250155,4.49110787,201.96,201.92,7.94]
[1757033250351,4.49110787,201.96,201.94,7.94]
[1757033250551,1.41649544,201.96,201.89,7.94]
[1757033250756,1.41649544,201.96,201.91,7.94]
[1757033250958,1.41649544,201.96,201.93,7.94]
[1757033251160,1.41649544,201.96,201.9,7.94]
[1757033251360,9.52649544,201.96,201.91,3.87401951]
[1757033251558,9.52649544,201.96,201.93,7.94]
[1757033252158,1.38128757,201.94,201.88,7.94]
[1757033252358,1.38128757,201.94,201.89,3.87435271]
[1757033252555,9.49128757,201.94,201.9,11.81435271]
[1757033252760,9.49128757,201.94,201.87,7.94]
[1757033252960,0.03520787,201.96,201.91,7.94]
[1757033253163,0.03520787,201.96,201.92,3.87435364]
[1757033253364,0.03520787,201.96,201.91,7.94]
[1757033253562,0.03520787,201.96,201.93,7.94]
[1757033253763,0.03520787,201.96,201.91,7.94]
[1757033253958,0.03520787,201.96,201.93,7.94]
[1757033254166,0.03520787,201.96,201.9,1.38128757]
[1757033254365,0.03520787,201.96,201.92,7.94]
[1757033254562,0.03520787,201.96,201.9,1.38128757]
[1757033254756,0.03520787,201.96,201.91,3.87149493]
[1757033254964,0.03520787,201.96,201.93,7.94]
[1757033255163,0.03520787,201.96,201.91,7.94]
[1757033255363,0.03520787,201.96,201.92,3.87134928]
[1757033255564,0.03520787,201.96,201.93,3.87134928]
[1757033255862,0.03520787,201.96,201.94,7.94]
[1757033256159,0.03520787,201.96,201.91,7.94]
[1757033256360,0.03520787,201.96,201.95,7.94]
[1757033256560,0.03520787,201.96,201.95,11.8119539]
[1757033256954,0.03520787,201.96,201.95,16.29073123]
[1757033257760,1.38128757,202.05,201.96,7.94]
[1757033257959,1.38128757,202.05,201.99,7.94]
[1757033258156,1.38128757,202.05,201.93,4.19810502]
[1757033258157,4.4543,202.04,202.01,7.94]
[1757033258365,4.4543,202.04,202.03,7.94]
[1757033258563,4.4543,202.04,202.03,12.41877733]
[1757033259459,12.5643,202.04,202.03,7.733e-05]
[1757033259666,4.4546,202.02,202.01,0.03521039]
[1757033263067,1.38128757,202.08,202.02,7.94]
[1757033263863,5.83468757,202.08,202.02,7.94]
[1757033264067,4.4534,202.08,202.03,1.38128757]
[1757033264564,4.4534,202.08,202.04,7.94]
[1757033264772,4.4534,202.08,202.03,1.38128757]
[1757033265172,4.4534,202.08,202.04,7.94]
[1757033266071,4.4534,202.08,202.03,1.38128757]
[1757033266272,4.4534,202.08,202.04,7.94]
[1757033266470,12.5634,202.08,202.04,7.94]
[1757033268073,12.5634,202.08,202.03,1.38128757]
[1757033268274,12.5634,202.08,202.04,7.55]
[1757033268866,4.4534,202.08,202.03,1.38128757]
[1757033269575,4.4534,202.08,202.04,7.55]
[1757033270071,4.4534,202.08,202.03,1.38128757]
[1757033270675,4.4534,202.08,202.04,7.55]
[1757033270868,4.4534,202.08,202.03,1.38128757]
[1757033271472,4.4534,202.08,202.04,7.55]
[1757033271773,4.4527,202.11,202.08,7.55]
[1757033271978,12.3327,202.11,202.03,7.55]
[1757033272174,12.3327,202.11,202.05,1.38128757]
[1757033272480,12.3331,202.09,202.05,7.58260345]
[1757033272673,12.3331,202.09,202.06,7.55]
[1757033272870,12.3335,202.07,202.05,0.03260345]
[1757033273271,4.4535,202.07,202.05,0.03260345]
[1757033273475,7.88,202.06,202.05,0.03260345]
[1757033277771,9.26128757,202.06,202.05,0.03260345]
[1757033280675,1.38128757,202.08,202.05,0.03260345]
[1757033280880,1.38128757,202.11,202.05,7.58260345]
[1757033281280,7.88,202.12,202.06,1.38128757]
[1757033284588,7.88,202.12,202.05,7.58260345]
[1757033284589,7.88,202.06,202.05,0.03260345]
[1757033293383,1.38128757,202.07,202.05,0.03260345]
[1757033293587,7.88,202.06,202.05,0.03260345]
[1757033294584,1.38128757,202.07,202.05,0.03260345]
[1757033294788,7.88,202.09,202.05,0.03260345]
[1757033294789,1.38128757,202.09,202.05,0.03260345]
[1757033294988,9.26128757,202.09,202.05,7.58260345]
[1757033295389,7.88,202.08,202.05,7.58260345]
[1757033296288,9.26128757,202.12,202.05,0.03260345]
[1757033296488,7.88,202.12,202.05,0.03260345]
[1757033296690,7.88,202.12,202.06,8.93128757]
[1757033297693,9.26128757,202.12,202.06,7.55]
[1757033297992,9.26128757,202.12,202.06,8.93128757]
[1757033299086,7.88,202.12,202.06,7.55]
[1757033299292,7.68,202.14,202.08,1.38128757]
[1757033299889,1.38128757,202.15,202.09,0.03585424]
[1757033300090,7.68,202.14,202.09,0.03585424]
[1757033300294,1.38128757,202.15,202.09,0.03585424]
[1757033300694,1.38128757,202.13,202.09,0.03585424]
[1757033301094,7.68,202.12,202.09,0.03585424]
[1757033302091,1.38128757,202.13,202.09,0.03585424]
[1757033302296,7.68,202.12,202.09,0.03585424]
[1757033302491,1.38128757,202.13,202.09,0.03585424]
[1757033302801,7.68,202.12,202.09,0.03585424]
[1757033303001,1.38128757,202.13,202.09,0.03585424]
[1757033303403,7.68,202.12,202.09,0.03585424]
[1757033303798,1.38128757,202.13,202.09,0.03585424]
[1757033304502,7.68,202.12,202.09,0.03585424]
[1757033304696,1.38128757,202.13,202.09,0.03585424]
[1757033305194,7.68,202.12,202.09,0.03585424]
[1757033305397,9.06128757,202.13,202.1,7.9]
[1757033305901,7.68,202.17,202.1,7.9]
[1757033306100,1.38128757,202.16,202.1,7.9]
[1757033306405,1.38128757,202.16,202.11,4.7681901]
[1757033306604,7.68,202.15,202.09,0.03585424]
[1757033306806,7.68,202.15,202.1,4.7677598]
[1757033306999,7.68,202.15,202.09,0.03585424]
[1757033307000,1.38128757,202.16,202.11,4.7677598]
[1757033307200,7.68,202.15,202.09,0.03585424]
[1757033307400,1.38128757,202.16,202.1,4.76824902]
[1757033307702,1.38128757,202.14,202.09,0.03585424]
[1757033307898,7.68,202.13,202.1,4.76803539]
[1757033308204,7.68,202.13,202.09,0.03585424]
[1757033308405,7.68,202.13,202.1,4.76809062]
[1757033308605,7.68,202.13,202.09,7.93585424]
[1757033308805,7.68,202.13,202.1,4.76798149]
[1757033309001,7.68,202.13,202.11,4.76798149]
[1757033309207,7.68,202.13,202.09,7.93585424]
[1757033309406,7.68,202.13,202.1,4.76780202]
[1757033309600,7.68,202.13,202.11,4.76780202]
[1757033309806,7.68,202.13,202.09,7.93585424]
[1757033310010,7.68,202.13,202.1,4.76757953]
[1757033310202,7.68,202.13,202.11,4.76757953]
[1757033310402,7.68,202.13,202.09,7.93585424]
[1757033310604,7.68,202.13,202.1,4.7672132]
[1757033310803,7.68,202.13,202.11,4.7672132]
[1757033311103,7.68,202.13,202.09,7.93585424]
[1757033311304,7.68,202.13,202.1,4.76703546]
[1757033311505,7.68,202.13,202.11,4.76703546]
[1757033311701,7.68,202.13,202.09,7.93585424]
[1757033311908,7.68,202.13,202.1,4.76687834]
[1757033312409,7.68,202.13,202.11,4.76687834]
[1757033312608,9.83490177,202.17,202.1,7.9]
[1757033312803,9.83490177,202.17,202.11,4.76665244]
[1757033313009,2.15490177,202.17,202.12,12.66665244]
[1757033313307,7.68,202.16,202.12,12.66665244]
[1757033313507,7.68,202.16,202.12,7.9]
[1757033313710,7.68,202.17,202.12,7.9]
[1757033314208,2.15490177,202.18,202.12,7.9]
[1757033314412,7.68,202.17,202.12,7.93192946]
[1757033314608,2.15490177,202.18,202.12,7.93192946]
[1757033315201,7.68,202.17,202.12,7.93192946]
[1757033315500,2.15490177,202.18,202.12,7.93192946]
[1757033316011,9.83490177,202.18,202.12,7.93192946]
[1757033316311,9.83490177,202.18,202.12,0.03192946]
[1757033316511,9.83490177,202.18,202.13,4.76494501]
[1757033316712,9.83490177,202.18,202.12,0.03192946]
[1757033316913,9.83490177,202.18,202.13,4.76494501]
[1757033317114,9.83490177,202.18,202.12,0.03192946]
[1757033317417,7.68,202.17,202.13,12.66478781]
[1757033317618,7.68,202.17,202.13,7.9]
[1757033317812,2.15490177,202.18,202.12,0.03192946]
[1757033318013,2.15490177,202.18,202.13,4.76463084]
[1757033318213,2.15490177,202.18,202.12,0.03192946]
[1757033319209,7.68,202.17,202.12,0.03192946]
[1757033319718,2.15490177,202.18,202.12,0.03192946]
[1757033320113,7.68,202.17,202.12,0.03192946]
[1757033320317,2.15490177,202.18,202.12,0.03192946]
[1757033320514,7.68,202.17,202.12,0.03192946]
[1757033320816,2.15490177,202.18,202.12,0.03192946]
[1757033321216,8.17777715,202.22,202.12,0.03192946]
[1757033321417,7.68,202.17,202.13,4.76381911]
[1757033321616,7.68,202.17,202.12,0.03192946]
[1757033321817,2.15490177,202.18,202.13,4.76381911]
[1757033322019,2.15490177,202.18,202.12,0.03192946]
[1757033322216,2.15490177,202.18,202.13,4.7637065]
[1757033322520,7.68,202.17,202.12,0.03192946]
[1757033323222,2.15490177,202.18,202.12,0.03192946]
[1757033324123,7.68,202.17,202.12,0.03192946]
[1757033326624,2.15490177,202.18,202.12,0.03192946]
[1757033326824,7.68,202.17,202.12,0.03192946]
[1757033327918,7.73,202.17,202.12,0.03192946]
[1757033329221,2.15490177,202.15,202.12,0.03192946]
[1757033330221,7.73,202.14,202.12,0.03192946]
[1757033330421,2.15490177,202.15,202.12,0.03192946]
[1757033331323,7.73,202.14,202.12,0.03192946]
[1757033331723,2.15490177,202.15,202.12,0.03192946]
[1757033332122,7.73,202.14,202.12,0.03192946]
[1757033332627,2.15490177,202.15,202.12,0.03192946]
[1757033332823,7.73,202.14,202.12,0.03192946]
[1757033333226,2.15490177,202.15,202.12,0.03192946]
[1757033333419,7.73,202.14,202.12,0.03192946]
[1757033333626,2.15490177,202.15,202.12,0.03192946]
[1757033333821,7.73,202.14,202.12,0.03192946]
[1757033334627,7.73,202.16,202.12,0.03192946]
[1757033334829,7.73,202.13,202.12,0.03192946]
[1757033341725,2.15490177,202.16,202.13,7.51]
[1757033341932,7.76660103,202.15,202.12,0.03192946]
[1757033342527,7.76660103,202.15,202.13,4.78891541]
[1757033342727,7.76660103,202.15,202.12,7.54192946]
[1757033342922,7.76660103,202.15,202.13,4.78880313]
[1757033343123,7.76660103,202.15,202.12,7.54192946]
[1757033343323,0.03660103,202.15,202.14,7.51]
[1757033343729,0.03660103,202.15,202.12,7.54192946]
[1757033343931,0.03660103,202.15,202.13,4.78879454]
[1757033344131,7.76660103,202.15,202.12,7.54192946]
[1757033344325,7.76660103,202.15,202.13,4.78889236]
[1757033344533,0.03660103,202.15,202.13,7.51]
[1757033344723,0.03660103,202.15,202.14,4.78857486]
[1757033344926,0.03660103,202.15,202.14,12.29857486]
[1757033346122,0.03660103,202.15,202.14,16.83164208]
[1757033346532,0.03660103,202.15,202.14,12.04306722]
[1757033347836,0.03660103,202.15,202.14,16.83051467]
[1757033350631,10.33267892,202.28,202.15,7.51]
[1757033350933,7.73,202.29,202.18,7.51]
[1757033351135,7.73,202.29,202.21,7.51]
[1757033351331,7.73,202.29,202.23,7.51]
[1757033351727,7.73,202.29,202.24,0.03508681]
[1757033351932,7.73,202.29,202.25,7.51]
[1757033352131,7.73,202.3,202.25,7.51]
[1757033352337,2.15490177,202.31,202.25,7.51]
[1757033352636,9.88490177,202.31,202.25,7.51]
[1757033355637,2.15490177,202.32,202.25,7.51]
[1757033356545,9.88490177,202.32,202.25,7.51]
[1757033356943,2.15490177,202.29,202.25,7.51]
[1757033357238,7.73,202.28,202.25,7.51]
[1757033357443,2.15490177,202.29,202.25,7.51]
[1757033357740,9.88490177,202.32,202.25,7.51]
[1757033362640,2.15490177,202.35,202.25,7.51]
[1757033363242,2.15490177,202.35,202.28,7.88365476]
[1757033363643,7.44,202.34,202.28,7.88365476]
[1757033366846,7.44,202.31,202.28,7.88365476]
[1757033368655,9.59490177,202.29,202.28,0.03365476]
[1757033369244,9.59490177,202.29,202.21,7.85]
[1757033369444,9.59490177,202.29,202.17,1.37791241]
[1757033369445,1.37791241,202.24,202.17,1.37791241]
[1757033369641,1.37791241,202.24,202.19,7.85]
[1757033369847,1.37791241,202.24,202.18,7.85]
[1757033370042,1.37791241,202.26,202.2,7.85]
[1757033370444,1.37791241,202.26,202.22,7.85]
[1757033370640,1.37791241,202.26,202.21,0.03372111]
[1757033370847,1.37791241,202.27,202.22,7.85]
[1757033371146,1.37791241,202.27,202.21,0.03372111]
[1757033371348,1.37791241,202.27,202.22,7.85]
[1757033371650,1.37791241,202.25,202.21,0.03372111]
[1757033372043,1.37791241,202.25,202.19,1.37791241]
[1757033372247,1.37791241,202.25,202.22,7.85]
[1757033372647,1.37791241,202.25,202.19,7.85]
[1757033372845,1.37791241,202.25,202.22,7.85]
[1757033373150,1.37791241,202.25,202.21,0.03173691]
[1757033373457,1.37791241,202.25,202.22,7.85]
[1757033373755,1.37791241,202.25,202.21,0.03173691]
[1757033374655,1.37791241,202.25,202.22,7.85]
[1757033374854,7.44,202.26,202.22,7.85]
[1757033375056,1.37791241,202.25,202.21,0.03173691]
[1757033375251,1.37791241,202.25,202.22,7.85]
[1757033375952,7.44,202.24,202.21,7.88173691]
[1757033376154,1.37791241,202.25,202.22,7.85]
[1757033376855,1.37791241,202.25,202.21,0.03173691]
[1757033377161,1.37791241,202.25,202.22,7.85]
[1757033377359,1.37791241,202.25,202.21,0.03173691]
[1757033377654,1.37791241,202.25,202.22,7.85]
[1757033378654,1.37791241,202.25,202.21,0.03173691]
[1757033378846,1.37791241,202.25,202.22,7.85]
[1757033379357,1.37791241,202.25,202.21,0.03173691]
[1757033379656,1.37791241,202.25,202.22,7.85]
[1757033379962,1.37791241,202.25,202.21,0.03173691]
[1757033380257,1.37791241,202.25,202.22,4.49374115]
[1757033380459,7.44,202.32,202.22,7.85]
[1757033380654,7.44,202.32,202.26,7.85]
[1757033380855,8.81791241,202.32,202.26,7.85]
[1757033381157,7.44,202.31,202.28,7.85]
[1757033382054,1.37791241,202.32,202.28,7.85]
[1757033382250,7.44,202.29,202.27,0.03172113]
[1757033382458,8.81791241,202.28,202.27,0.03172113]
[1757033383555,1.37791241,202.3,202.28,7.85]
[1757033383855,8.81791241,202.32,202.28,7.85]
[1757033384659,1.37791241,202.33,202.28,7.85]
[1757033385256,1.37791241,202.33,202.27,0.03172113]
[1757033385452,1.37791241,202.34,202.28,12.35123266]
[1757033385659,1.37791241,202.34,202.29,4.50121127]
[1757033385958,7.44,202.33,202.3,7.85]
[1757033387654,1.37791241,202.34,202.27,1.40963354]
[1757033387863,7.69,202.31,202.28,9.28321719]
[1757033388061,7.69,202.31,202.29,4.50610643]
[1757033388259,7.69,202.31,202.3,4.50610643]
[1757033388659,1.37791241,202.32,202.26,7.48]
[1757033388859,9.06791241,202.3,202.28,0.03197399]
[1757033389058,9.06791241,202.3,202.29,4.50828383]
[1757033389563,9.06791241,202.3,202.29,9.30054218]
[1757033389760,9.06791241,202.3,202.29,4.50828383]
[1757033389958,9.06791241,202.3,202.29,9.30054218]
[1757033390154,9.06791241,202.3,202.29,4.50828383]
[1757033390356,7.69,202.29,202.28,0.03197399]
[1757033390661,7.69,202.29,202.28,4.52328318]
[1757033391462,9.06791241,202.29,202.28,4.52328318]
[1757033393660,9.06791241,202.29,202.2,7.48]
[1757033393860,9.06791241,202.24,202.21,16.40442923]
[1757033394066,9.06791241,202.24,202.22,4.45035474]
[1757033394265,9.06791241,202.24,202.23,4.45035474]
[1757033394658,9.06791241,202.24,202.21,7.48]
[1757033394864,1.37791241,202.24,202.22,4.45364721]
[1757033395064,1.37791241,202.24,202.21,7.48]
[1757033395264,1.37791241,202.24,202.22,4.45345948]
[1757033395464,1.37791241,202.24,202.23,4.45345948]
[1757033396061,1.37791241,202.28,202.24,7.48]
[1757033396266,7.69,202.33,202.25,4.45345948]
[1757033396464,7.69,202.33,202.26,11.93345948]
[1757033396665,23.03777715,202.38,202.27,4.45345948]
[1757033396666,1.37791241,202.31,202.27,4.45345948]
[1757033396871,1.37791241,202.29,202.21,7.48]
[1757033397062,1.37791241,202.27,202.22,8.44156257]
[1757033397267,1.37791241,202.27,202.24,7.48]
[1757033397470,1.37791241,202.27,202.25,4.45730904]
[1757033397671,1.37791241,202.27,202.24,7.48]
[1757033397871,1.37791241,202.27,202.25,4.45751325]
[1757033398072,1.37791241,202.27,202.21,7.48]
[1757033398273,1.37791241,202.27,202.23,7.48]
[1757033398473,1.37791241,202.27,202.24,11.93757471]
[1757033398673,1.37791241,202.27,202.25,4.45757471]
[1757033398971,1.37791241,202.27,202.2,1.37791241]
[1757033399173,1.37791241,202.27,202.21,15.92207807]
[1757033399376,1.37791241,202.27,202.22,8.44207807]
[1757033399572,1.37791241,202.27,202.24,7.48]
[1757033399778,1.37791241,202.27,202.25,11.93757471]
[1757033399980,1.37791241,202.27,202.25,7.48]
[1757033401877,1.37791241,202.28,202.21,7.48]
[1757033402081,1.37791241,202.28,202.23,7.48]
[1757033402379,1.37791241,202.28,202.25,7.48]
[1757033402973,7.69,202.3,202.22,1.37791241]
[1757033403179,1.37791241,202.31,202.24,8.85791241]
[1757033403375,1.37791241,202.31,202.25,8.44203922]
[1757033403581,9.06791241,202.31,202.27,7.48]
[1757033404281,1.37791241,202.29,202.27,7.48]
[1757033405575,1.37791241,202.29,202.22,1.37791241]
[1757033405783,9.06791241,202.27,202.23,16.35780679]
[1757033406079,9.06791241,202.27,202.2,7.48]
[1757033406275,9.06791241,202.27,202.21,8.44216524]
[1757033406578,9.06791241,202.27,202.23,7.48]
[1757033406781,9.06791241,202.27,202.24,4.45762903]
[1757033407079,9.06791241,202.27,202.23,7.48]
[1757033407080,9.06791241,202.27,202.25,8.87847089]
[1757033407275,9.06791241,202.27,202.26,4.42084186]
[1757033407677,9.06791241,202.27,202.2,7.48]
[1757033407877,1.37791241,202.24,202.21,12.86330282]
[1757033408079,8.17777715,202.33,202.17,1.37791241]
[1757033408080,1.37791241,202.26,202.22,8.87873166]
[1757033408278,1.37791241,202.26,202.23,16.35873166]
[1757033408476,1.37791241,202.26,202.24,8.87873166]
[1757033408670,1.37791241,202.26,202.25,4.42095084]
[1757033408875,9.06791241,202.26,202.25,4.42095084]
[1757033409079,9.06791241,202.26,202.2,7.48]
[1757033409282,7.69,202.25,202.22,7.48]
[1757033409576,8.17777715,202.33,202.16,1.37791241]
[1757033409577,9.06791241,202.24,202.16,1.37791241]
[1757033409780,9.06791241,202.24,202.17,15.92266535]
[1757033409979,9.06791241,202.24,202.18,3.98474651]
[1757033410278,9.06791241,202.24,202.19,8.44266516]
[1757033410478,9.06791241,202.24,202.2,8.44266516]
[1757033410679,9.06791241,202.24,202.21,11.93791865]
[1757033410878,9.06791241,202.24,202.22,4.45791865]
[1757033411082,1.37791241,202.24,202.17,7.48]
[1757033411284,1.37791241,202.24,202.19,7.48]
[1757033411483,1.37791241,202.24,202.21,7.48]
[1757033411684,1.37791241,202.24,202.22,11.93732075]
[1757033411879,1.37791241,202.24,202.22,7.48]
[1757033412785,1.37791241,202.24,201.26,88.09373127]
[1757033412786,7.69,202.23,202.16,7.48]
[1757033412987,1.37791241,202.19,202.17,4.4574906]
[1757033413180,1.37791241,202.19,202.16,7.48]
[1757033413374,1.37791241,202.19,202.13,1.37791241]
[1757033413579,1.37791241,202.19,202.14,3.98357106]
[1757033413885,1.37791241,202.19,202.15,3.98357106]
[1757033414085,1.37791241,202.19,202.17,7.48]
[1757033415382,1.37791241,202.19,202.13,1.37791241]
[1757033415579,0.03123303,202.2,202.11,326.22]
[1757033415580,7.69,202.16,202.11,326.22]
[1757033415784,7.69,202.16,202.12,7.48]
[1757033416182,7.69,202.16,202.1,7.48]
[1757033416382,0.0323,202.16,202.12,7.48]
[1757033416584,0.0323,202.16,202.1,7.48]
[1757033416784,0.0323,202.16,202.12,7.48]
[1757033416984,0.0323,202.16,202.1,7.48]
[1757033418989,7.6723,202.16,202.12,7.55]
[1757033419191,9.01791241,202.15,202.12,7.55]
[1757033419689,1.37791241,202.15,202.12,7.55]
[1757033419882,1.37791241,202.15,202.11,0.03121273]
[1757033420287,1.37791241,202.15,202.12,7.55]
[1757033420796,9.01791241,202.15,202.12,7.55]
[1757033423684,7.64,202.14,202.11,0.03121273]
[1757033424691,7.64,202.14,202.11,7.58121273]
[1757033424989,9.01791241,202.15,202.11,7.58121273]
[1757033426091,9.01791241,202.15,202.12,7.55]
[1757033429594,7.64,202.15,202.12,7.55]
[1757033429794,7.64,202.15,202.11,0.03121273]
[1757033430090,7.64,202.13,202.11,0.03121273]
[1757033430598,2.15494601,202.14,202.11,0.03121273]
[1757033431492,7.64,202.13,202.11,0.03121273]
[1757033431690,2.15494601,202.14,202.11,0.03121273]
[1757033431892,0.0323,202.16,202.12,7.55]
[1757033432192,0.0323,202.16,202.11,0.03121273]
[1757033432597,0.0323,202.16,202.12,7.55]
[1757033433193,0.0323,202.16,202.11,0.03121273]
[1757033433591,0.0323,202.16,202.12,7.55]
[1757033433788,0.0323,202.16,202.11,0.03121273]
[1757033434489,0.0323,202.16,202.12,7.55]
[1757033434893,0.0323,202.16,202.11,0.03121273]
[1757033435195,0.0323,202.16,202.12,7.55]
[1757033435600,0.0323,202.16,202.11,0.03121273]
[1757033435800,0.0323,202.16,202.12,7.55]
[1757033436100,0.0323,202.16,202.11,0.03121273]
[1757033436497,7.64,202.15,202.11,0.03121273]
[1757033436701,0.0323,202.16,202.11,0.03121273]
[1757033437197,7.64,202.15,202.11,0.03121273]
[1757033437701,0.0323,202.16,202.11,0.03121273]
[1757033437894,7.64,202.15,202.11,0.03121273]
[1757033438101,0.0323,202.16,202.11,0.03121273]
[1757033438605,7.64,202.15,202.11,0.03121273]
[1757033439201,0.0323,202.16,202.11,0.03121273]
[1757033439804,7.64,202.15,202.11,0.03121273]
[1757033440602,0.0323,202.16,202.11,0.03121273]
[1757033441304,7.64,202.15,202.11,0.03121273]
[1757033441804,0.0323,202.16,202.11,0.03121273]
[1757033442207,0.0323,202.16,202.12,7.55]
[1757033442804,0.0323,202.16,202.14,7.55]
[1757033443000,7.64,202.26,202.14,7.55]
[1757033443204,7.64,202.26,202.18,7.55]
[1757033443504,7.64,202.3,202.21,7.55]
[1757033444098,7.64,202.3,202.23,0.03196261]
[1757033447613,7.64,202.3,202.24,7.55]
[1757033451523,7.64,202.3,202.23,0.03196261]
[1757033451719,2.15494601,202.29,202.23,0.03196261]
[1757033452111,8.13,202.28,202.2,8.11]
[1757033452415,8.13,202.28,202.24,0.03715861]
[1757033452613,2.15494601,202.29,202.24,0.03715861]
[1757033453118,8.13,202.28,202.24,0.03715861]
[1757033453416,8.13,202.28,202.24,8.14715861]
[1757033454413,8.13,202.28,202.25,8.11]
[1757033454914,8.13,202.28,202.24,0.03715861]
[1757033455310,2.15494601,202.32,202.24,0.03715861]
[1757033455517,8.13,202.31,202.24,0.03715861]
[1757033459119,2.15494601,202.29,202.24,0.03715861]
[1757033459319,8.13,202.28,202.24,0.03715861]
[1757033459624,2.15494601,202.29,202.24,0.03715861]
[1757033460313,8.13,202.28,202.24,0.03715861]
[1757033460621,2.15494601,202.29,202.24,0.03715861]
[1757033461118,2.15494601,202.26,202.24,0.03715861]
[1757033461323,8.13,202.25,202.24,0.03715861]
[1757033461719,8.13,202.25,202.17,4.46053311]
[1757033461925,8.13,202.21,202.15,8.11]
[1757033462923,8.16772577,202.2,202.15,8.11]
[1757033464920,0.03772577,202.2,202.15,8.11]
[1757033465121,8.13,202.19,202.15,8.11]
[1757033465318,8.13,202.19,202.13,8.11]
[1757033465524,8.13,202.19,202.15,8.11]
[1757033465827,8.13,202.19,202.13,8.11]
[1757033466020,8.13,202.19,202.15,8.11]
[1757033466820,10.28494601,202.19,202.11,8.11]
[1757033467120,10.68,202.27,202.12,4.46345828]
[1757033467121,2.15494601,202.16,202.12,4.46345828]
[1757033467324,8.13,202.15,202.08,8.11]
[1757033467520,8.13,202.15,202.09,4.46371535]
[1757033467721,8.13,202.15,202.12,0.03184841]